[Event "Budapest GM ONE WEEK Feb 2024"]
[Site "Budapest"]
[Date "2024.02.29"]
[Round "6.5"]
[White "Bodi, Tibor"]
[Black "Pap, Misa"]
[Result "0-1"]
[ECO "A45"]
[WhiteElo "2294"]
[BlackElo "2422"]
[Annotator "TA"]
[PlyCount "86"]
[EventDate "2024.02.25"]
[EventType "tourn"]
[EventCountry "HUN"]
[SourceTitle "playchess.com"]
[Source "ChessBase"]
[SourceQuality "1"]
[TimeControl "5400+30"]

{[%evp 9,86,-6,-12,-13,0,-14,-16,-29,-15,-41,-37,-51,-31,-23,0,0,0,0,0,0,0,-53,0,-45,-62,-112,-101,-101,-66,-100,-39,-31,-29,-32,-22,-27,-18,-22,0,0,0,-22,-32,-14,0,0,0,0,-2,-24,-6,-25,-5,-11,-6,-57,-6,-188,-108,-432,-466,-621,-614,-962,-900,-951,-846,-1002,-929,-1635,-1600,-1799,-1651,-2400,-1826,-5810,-5694,-6031,-2720]} 1. d4 {[%emt 0:14:36]} Nf6 {[%emt 0:00:36]} 2. Bf4 {[%emt 0:00:16]} d6 {[%emt 0:00:31]} 3. Nc3 {[%emt 0:00:18]} Nbd7 {[%emt 0:00:24]} 4. e4 {[%emt 0:00:31]} e5 {[%emt 0:00:07]} 5. Bg3 {[%emt 0:01:39]} c6 {[%emt 0:03:22]} 6. Nf3 {[%emt 0:06:51][%cal Rd4e5]} Nh5 {[%emt 0:06:56]} 7. Bc4 {[%emt 0:06:18][%cal Rf3e5]} Nxg3 {[%emt 0:01:03]} 8. hxg3 {[%emt 0:00:23] The position is equal.} Be7 {[%emt 0:08:33]} 9. dxe5 {[%emt 0:10:15]} dxe5 {[%emt 0:00:46]} 10. Qe2 {[%emt 0:00:44]} b5 {[%emt 0:15:16]} 11. Bb3 {[%emt 0:00:23]} Qc7 {[%emt 0:00:19]} 12. a4 {[%emt 0:03:44]} bxa4 {[%emt 0:02:57]} 13. Nxa4 {[%emt 0:03:51]} O-O {[%emt 0:05:56]} 14. Nd2 {[%emt 0:07:07]} Nf6 {[%emt 0:10:29]} 15. f3 {[%emt 0:07:44]} (15. O-O $11) 15... h6 {[%emt 0:06:17]} (15... Nd7 $15) 16. O-O-O {[%emt 0:04:34]} Rb8 {[%emt 0:01:32]} 17. g4 {[%emt 0:00:16]} ({Better is} 17. Kb1 $15) 17... Nh7 $17 {[%emt 0:00:18][%cal Bf6h7,Bh7g5,Bg5e6,Be6f4][%mdl 32]} 18. Kb1 {[%emt 0:15:11]} Rb4 {[%emt 0:04:16]} 19. c3 $1 {[%emt 0:00:12]} Rb8 {[%emt 0:01:07]} (19... Rb5 $17) 20. Kc2 $15 {[%emt 0:00:22]} Ng5 {[%emt 0:03:07]} 21. Ra1 {[%emt 0:00:51]} Ne6 {[%emt 0:08:29]} 22. Bc4 {[%emt 0:01:02]} Rd8 {[%emt 0:00:21]} 23. Rhd1 {[%emt 0:00:44] White is weak on the dark squares} Nf4 {[%emt 0:05:44]} 24. Qf1 {[%emt 0:01:12]} Bd7 {[%emt 0:03:41]} 25. g3 {[%emt 0:01:39]} Ne6 {[%emt 0:00:05]} 26. b3 {[%emt 0:04:53]} Bg5 {[%emt 0:03:31]} 27. Qf2 {[%emt 0:00:14]} Rb5 {[%emt 0:01:21]} 28. Nb2 {[%emt 0:01:02]} a5 {[%emt 0:00:25][%cal Oe6c5]} 29. Nf1 {[%emt 0:04:36]} Rdb8 {[%emt 0:01:04]} 30. Na4 {[%emt 0:01:00]} Be8 {[%emt 0:02:37]} 31. Qe2 {[%emt 0:00:39]} (31. Ne3 $5) 31... Qa7 {[%emt 0:00:52][%cal Oe8d7]} 32. Nb2 {[%emt 0:02:10]} (32. Ra2 $11) 32... Qb6 {[%emt 0:01:52]} ({Black should try} 32... Qb7 $1 $15 33. Bxb5 cxb5) 33. Bxb5 $2 {[%emt 0:00:37]} (33. Nd2 $11) 33... cxb5 $19 {[%emt 0:00:09]} 34. Rd5 $2 {[%emt 0:00:48][%mdl 8192]} (34. Kb1 $17) 34... Rc8 {[%emt 0:00:19] Black is clearly winning.} 35. Kb1 {[%emt 0:00:47]} Rxc3 {[%emt 0:00:16] [#] aiming for ...Nd4.} 36. Ka2 {[%emt 0:00:16]} Nd4 {[%emt 0:00:39]} 37. Qe1 {[%emt 0:00:31]} Rxf3 {[%emt 0:00:34] ...a4 is the strong threat.} 38. Rxe5 {[%emt 0:00:34]} Bd7 {[%emt 0:00:29]} 39. Rd5 {[%emt 0:00:01]} Nc2 {[%emt 0:01:32]} 40. Qd1 {[%emt 0:00:22]} Nb4+ {[%emt 0:00:08]} ({Less strong is} 40... Bxg4 41. Qxc2 a4 42. Nd3 $17) 41. Kb1 {[%emt 0:00:14]} Bxg4 {[%emt 0:01:12] This pair of bishops is nice.} 42. Nh2 {[%emt 0:00:02]} Nxd5 {[%emt 0:00:23]} 43. Qxd5 {[%emt 0:00:15]} Qg1+ {[%emt 0:00:22] Weighted Error Value: White=0.95/Black=0.11 (very precise) .  Loses game:     	White=2     	---        Mistake:       	White=3     	Black=3      Inaccurate:     	White=4     	Black=2      OK:         	White=11    	Black=10     Best:        	White=1     	Black=2      Strong:       	White=1     	---} 0-1

[Event "Budapest GM ONE WEEK Feb 2024"]
[Site "Budapest"]
[Date "2024.03.01"]
[Round "7.1"]
[White "Pap, Misa"]
[Black "Grover, Sahaj"]
[Result "0-1"]
[ECO "C49"]
[WhiteElo "2422"]
[BlackElo "2503"]
[Annotator "RC"]
[PlyCount "166"]
[EventDate "2024.02.25"]
[EventType "tourn"]
[EventCountry "HUN"]
[SourceTitle "playchess.com"]
[Source "ChessBase"]
[SourceQuality "1"]
[TimeControl "5400+30"]

1. e4 {[%emt 0:01:29]} e5 {[%emt 0:17:48]} 2. Nf3 {[%emt 0:00:07]} Nc6 {[%emt 0:00:04]} 3. Nc3 {[%emt 0:00:31]} Nf6 {[%emt 0:00:06]} 4. Bb5 {[%emt 0:00:13]} Bb4 {[%emt 0:02:47]} 5. O-O {[%emt 0:00:13]} O-O {[%emt 0:00:04]} 6. Bxc6 {[%emt 0:00:20]} dxc6 {[%emt 0:00:47]} 7. Nxe5 {[%emt 0:00:05]} Re8 {[%emt 0:04:08]} 8. Nd3 {[%emt 0:00:06]} Bxc3 {[%emt 0:04:17]} 9. dxc3 {[%emt 0:00:28]} Nxe4 {[%emt 0:00:06]} 10. Bf4 {[%emt 0:00:04]} g5 {[%emt 0:03:03]} 11. Be3 {[%emt 0:04:40]} Bf5 {[%emt 0:01:12]} 12. Qf3 {[%emt 0:22:17]} Bg6 {[%emt 0:03:53]} 13. Rfe1 {[%emt 0:18:14]} b6 {[%emt 0:06:13]} 14. h4 {[%emt 0:05:09]} h6 {[%emt 0:00:05]} 15. Qh3 {[%emt 0:09:57]} Kg7 {[%emt 0:30:56]} 16. Bd4+ {[%emt 0:25:16]} f6 {[%emt 0:00:18]} 17. f3 {[%emt 0:00:28]} Nd6 {[%emt 0:00:07]} 18. Rxe8 {[%emt 0:00:41]} Nxe8 {[%emt 0:00:27]} 19. hxg5 {[%emt 0:01:13]} hxg5 {[%emt 0:00:07]} 20. f4 {[%emt 0:04:14]} c5 {[%emt 0:02:19]} 21. fxg5 {[%emt 0:01:39]} cxd4 {[%emt 0:09:54]} 22. Nf4 {[%emt 0:00:54]} Kf7 {[%emt 0:03:09]} 23. Qe6+ {[%emt 0:00:05]} Kg7 {[%emt 0:00:04]} 24. Qh3 {[%emt 0:00:02]} Kf7 {[%emt 0:00:03]} 25. Re1 {[%emt 0:02:23]} dxc3 {[%emt 0:03:34]} 26. bxc3 {[%emt 0:00:56]} Qd6 {[%emt 0:03:57]} 27. Nxg6 {[%emt 0:00:30]} Kxg6 {[%emt 0:00:17]} 28. Qh6+ {[%emt 0:00:19]} Kf5 {[%emt 0:00:04]} 29. g6 {[%emt 0:00:34]} Qc5+ {[%emt 0:02:14]} 30. Kh1 {[%emt 0:00:50]} Qf2 {[%emt 0:01:04]} 31. Qh5+ {[%emt 0:00:33]} Kf4 {[%emt 0:00:04]} 32. Qh6+ {[%emt 0:01:17]} Kg4 {[%emt 0:00:40]} 33. Qh3+ {[%emt 0:00:41]} Kg5 {[%emt 0:00:07]} 34. Re3 {[%emt 0:00:24]} Qh4 35. Rg3+ Kh5 {[%emt 0:02:52]} 36. g7 {[%emt 0:00:17]} Nxg7 {[%emt 0:00:03]} 37. Qxh4+ {[%emt 0:00:15]} Kxh4 {[%emt 0:00:05]} 38. Rxg7 {[%emt 0:00:02]} Rc8 {[%emt 0:01:49]} 39. Kg1 {[%emt 0:00:10]} Kh5 {[%emt 0:00:39]} 40. Kf2 {[%emt 0:00:00]} Kh6 {[%emt 0:00:06]} 41. Rd7 {[%emt 0:01:43]} Kg6 {[%emt 0:00:07]} 42. Kf3 {[%emt 0:00:32]} f5 {[%emt 0:00:21]} 43. c4 {[%emt 0:00:19]} Kf6 {[%emt 0:00:06]} 44. c5 {[%emt 0:00:18]} Ke5 {[%emt 0:01:11]} 45. c6 {[%emt 0:00:46]} b5 {[%emt 0:00:03]} 46. a3 {[%emt 0:00:51]} a5 {[%emt 0:00:09]} 47. c3 {[%emt 0:00:19]} a4 {[%emt 0:00:37]} 48. g3 {[%emt 0:00:09]} Rf8 {[%emt 0:00:10]} 49. Rxc7 {[%emt 0:01:06]} Kd6 {[%emt 0:00:03]} 50. Rd7+ {[%emt 0:01:04]} Kxc6 {[%emt 0:00:05]} 51. Rd4 {[%emt 0:00:19]} Re8 {[%emt 0:01:00]} 52. Rf4 {[%emt 0:00:55]} Re1 {[%emt 0:00:37]} 53. Rxf5 {[%emt 0:00:23]} Rc1 {[%emt 0:00:04]} 54. Ke4 {[%emt 0:00:26]} Rxc3 {[%emt 0:00:07]} 55. Kd4 {[%emt 0:00:29]} Rxa3 {[%emt 0:00:21]} 56. Rf6+ {[%emt 0:00:01]} Kd7 {[%emt 0:00:25]} 57. Kc5 {[%emt 0:00:15]} Rb3 {[%emt 0:00:03]} 58. g4 {[%emt 0:00:10]} Ke7 {[%emt 0:00:24]} 59. Ra6 {[%emt 0:00:11]} a3 {[%emt 0:00:18]} 60. g5 {[%emt 0:00:01]} Kf7 {[%emt 0:00:58]} 61. Kd4 {[%emt 0:00:55]} b4 {[%emt 0:00:32]} 62. Ke5 {[%emt 0:00:01]} Rb1 {[%emt 0:00:11]} 63. g6+ {[%emt 0:00:25]} Kg7 {[%emt 0:00:03]} 64. Kf5 {[%emt 0:00:02]} Rf1+ {[%emt 0:00:49]} 65. Kg5 {[%emt 0:00:01]} Rg1+ {[%emt 0:01:01]} 66. Kf5 {[%emt 0:00:27]} Rg2 {[%emt 0:00:16]} 67. Ra7+ {[%emt 0:00:06]} Kf8 {[%emt 0:00:04]} 68. Ra8+ Ke7 {[%emt 0:00:05]} 69. Ra4 {[%emt 0:01:55]} a2 70. Ra7+ Kd6 {[%emt 0:00:45]} 71. g7 {[%emt 0:00:08]} b3 {[%emt 0:00:38]} 72. Ra6+ {[%emt 0:00:38]} Kc5 {[%emt 0:00:06]} 73. Rg6 {[%emt 0:00:02]} Rxg6 {[%emt 0:00:11]} 74. Kxg6 {[%emt 0:00:04]} a1=Q {[%emt 0:00:06]} 75. g8=Q {[%emt 0:00:04]} Qg1+ {[%emt 0:00:04]} 76. Kf7 {[%emt 0:00:03]} Qxg8+ {[%emt 0:00:05]} 77. Kxg8 {[%emt 0:00:02]} b2 {[%emt 0:00:05]} 78. Kf7 {[%emt 0:00:02]} b1=Q {[%emt 0:00:09]} 79. Kf6 {[%emt 0:00:01]} Qe4 {[%emt 0:00:07]} 80. Kg5 {[%emt 0:00:01]} Qf3 {[%emt 0:00:06]} 81. Kg6 {[%emt 0:00:03]} Kd6 {[%emt 0:00:05]} 82. Kg5 {[%emt 0:00:03]} Ke6 {[%emt 0:00:05]} 83. Kh4 {[%emt 0:00:03]} Qg2 {[%emt 0:00:04]} 0-1

[Event "Budapest GM ONE WEEK Feb 2024"]
[Site "Budapest"]
[Date "2024.03.01"]
[Round "7.2"]
[White "Vetoshko, Volodymyr"]
[Black "Bodi, Tibor"]
[Result "1/2-1/2"]
[ECO "E10"]
[WhiteElo "2505"]
[BlackElo "2294"]
[Annotator "TA"]
[PlyCount "137"]
[EventDate "2024.02.25"]
[EventType "tourn"]
[EventCountry "HUN"]
[SourceTitle "playchess.com"]
[Source "ChessBase"]
[SourceQuality "1"]
[TimeControl "5400+30"]

{[%evp 23,137,26,81,87,95,63,56,63,79,87,104,108,114,106,105,102,105,63,91,72,126,140,163,137,153,100,95,93,101,48,47,49,49,23,41,44,40,37,53,64,56,32,39,26,31,30,30,25,39,39,43,43,43,43,55,50,70,48,65,70,71,64,67,72,113,110,231,252,252,201,193,145,145,145,145,145,134,104,158,148,267,264,237,217,324,298,340,291,330,333,337,386,383,377,327,107,117,24,225,107,367,59,59,59,59,0,0,0,0,0,0,0,0,0,0,-8]} 1. d4 {[%emt 0:01:52]} Nf6 {[%emt 0:07:59]} 2. c4 {[%emt 0:00:12]} e6 {[%emt 0:00:31]} 3. Nf3 {[%emt 0:00:13]} d5 {[%emt 0:00:22]} 4. g3 {[%emt 0:00:12]} c5 {[%emt 0:00:29]} 5. cxd5 {[%emt 0:02:21]} exd5 {[%emt 0:06:18]} 6. Bg2 {[%emt 0:00:14]} Nc6 {[%emt 0:00:11]} 7. O-O {[%emt 0:00:15]} cxd4 {[%emt 0:03:10]} 8. Nxd4 {[%emt 0:00:46]} Be7 {[%emt 0:05:03]} 9. Nc3 {[%emt 0:08:42]} O-O {[%emt 0:00:19]} 10. Bf4 {[%emt 0:03:20]} Bg4 {[%emt 0:18:17]} 11. h3 {[%emt 0:06:57]} Bh5 {[%emt 0:03:58]} 12. Nf5 {[%emt 0:05:20]} Bg6 {[%emt 0:03:15]} (12... Bb4 $1 $11 {keeps the balance.}) 13. Nxe7+ $16 {[%emt 0:01:43]} Qxe7 {[%emt 0:05:34]} 14. Nxd5 {[%emt 0:14:38]} Nxd5 {[%emt 0:00:14]} 15. Qxd5 {[%emt 0:00:07]} (15. Bxd5 Rad8 16. Qd2 h6 $17) 15... Qxe2 {[%emt 0:07:31]} 16. Qb3 {[%emt 0:00:53]} Qa6 {[%emt 0:01:53]} 17. Rfd1 {[%emt 0:02:50]} Bf5 {[%emt 0:07:53]} 18. Bf1 {[%emt 0:05:49]} Qb6 {[%emt 0:00:09]} 19. Qxb6 {[%emt 0:00:06]} axb6 {[%emt 0:00:01]} 20. Bc7 {[%emt 0:00:24]} Be6 {[%emt 0:04:49]} 21. a3 {[%emt 0:11:15]} Na5 {[%emt 0:00:41]} ({Black should try} 21... b5) 22. Rac1 $16 {[%emt 0:05:22]} Nb3 {[%emt 0:02:00]} 23. Rc3 {[%emt 0:02:19]} Nc5 {[%emt 0:00:22]} 24. Re3 {[%emt 0:03:39]} ({Worse is} 24. Bxb6 Na4 25. Bd4 Nxc3 26. Bxc3 b6 $17) (24. Rd4 $142) 24... Na4 {[%emt 0:01:17]} 25. Be5 {[%emt 0:01:31]} Rfd8 {[%emt 0:02:00]} 26. Red3 {[%emt 0:06:04]} ({White should play} 26. Rxd8+ $16 Rxd8 27. Re4) 26... Rxd3 $14 {[%emt 0:00:47]} 27. Rxd3 {[%emt 0:00:06]} f6 {[%emt 0:02:49]} 28. Rd6 {[%emt 0:05:02]} Kf7 {[%emt 0:01:13]} 29. Bf4 $1 {[%emt 0:00:18]} Ke7 {[%emt 0:01:07]} 30. h4 {[%emt 0:03:34]} Rd8 {[%emt 0:01:33]} 31. Rxd8 {[%emt 0:00:07]} Kxd8 {[%emt 0:00:02]} 32. b4 {[%emt 0:00:20]} Nb2 {[%emt 0:00:41]} 33. Bc1 {[%emt 0:04:31]} Nc4 {[%emt 0:00:30]} 34. Bg2 {[%emt 0:00:54]} Kc7 {[%emt 0:01:14]} 35. Kf1 {[%emt 0:00:20]} b5 {[%emt 0:00:40]} 36. Be4 {[%emt 0:00:33]} h6 {[%emt 0:01:15]} 37. Ke2 {[%emt 0:00:09]} b6 {[%emt 0:04:41]} 38. Kd3 {[%emt 0:00:33]} Kd6 {[%emt 0:02:52]} 39. Kd4 {[%emt 0:00:23]} Ne5 {[%emt 0:01:44]} 40. Bg2 {[%emt 0:05:42]} Bd7 {[%emt 0:00:25]} 41. Bf4 {[%emt 0:00:43]} g5 {[%emt 0:00:14]} 42. Bc1 {[%emt 0:00:22]} Nc6+ {[%emt 0:01:01]} 43. Kc3 {[%emt 0:00:09]} Ne5 {[%emt 0:00:30]} 44. f4 {[%emt 0:00:17]} gxf4 {[%emt 0:03:05]} (44... Nf7 $16) 45. Bxf4 $18 {[%emt 0:00:01]} h5 {[%emt 0:00:09]} 46. Bf3 {[%emt 0:00:20]} Be8 {[%emt 0:00:16]} 47. Be2 {[%emt 0:01:58]} (47. g4 $18) 47... Kd5 $16 {[%emt 0:01:07]} 48. Be3 {[%emt 0:00:15]} Nc4 {[%emt 0:00:23]} 49. Bf3+ {[%emt 0:00:31]} Ke6 {[%emt 0:00:25]} 50. Bc1 {[%emt 0:00:42]} Nd6 {[%emt 0:00:34]} (50... Ne5 $142 51. Be2 Ng4) 51. Bf4 {[%emt 0:00:21]} f5 {[%emt 0:01:21]} (51... Nf5 $16 {might work better.} 52. Be2 Ne7) 52. Kd4 $18 {[%emt 0:00:24]} Ne4 {[%emt 0:00:15]} 53. Bc7 {[%emt 0:00:23]} Bg6 {[%emt 0:01:00]} (53... Kf6 {was necessary.} 54. Ke3 (54. Bxb6 Nxg3 55. Bc7 Ne4 $16) 54... Kg6) 54. Bxb6 $18 {[%emt 0:00:25]} Nxg3 {[%emt 0:00:06]} 55. Bc6 {[%emt 0:00:21]} f4 {[%emt 0:00:15]} 56. Bxb5 {[%emt 0:00:39]} Nf5+ {[%emt 0:00:07]} 57. Kc3 {[%emt 0:00:23]} Nxh4 {[%emt 0:00:12]} 58. a4 {[%emt 0:00:43]} Be4 {[%emt 0:00:04]} 59. Bc4+ $2 {[%emt 0:00:43]} (59. Bf1 $18 {is more deadly.}) 59... Kd7 $16 {[%emt 0:00:16]} 60. Kd4 {[%emt 0:00:16]} (60. Bf7 $16) 60... Bc6 $2 {[%emt 0:01:12] [#]} (60... Bg2 $1 $11 {and Black is okay.}) 61. b5 {[%emt 0:00:17]} (61. a5 $1 $18 {is the precise move to win.}) 61... Nf3+ $2 {[%emt 0:00:08][%mdl 8192] [#]} (61... Bg2 $16) 62. Kc5 $2 {[%emt 0:00:08]} (62. Kc3 $1 $18) 62... Ba8 $14 {[%emt 0:00:11]} 63. Bf1 {[%emt 0:01:16]} Ng5 $1 {[%emt 0:00:19]} 64. Ba7 {[%emt 0:00:38]} (64. Kb4 $14) 64... h4 $11 {[%emt 0:00:32]} 65. Kb4 {[%emt 0:00:37]} h3 {[%emt 0:02:05]} 66. Bg1 {[%emt 0:00:06]} f3 {[%emt 0:00:09]} 67. b6 {[%emt 0:00:53]} f2 {[%emt 0:00:36]} 68. Bh2 $1 {[%emt 0:00:30]} Kc6 {[%emt 0:00:18]} 69. a5 {[%emt 0:00:29]} 1/2-1/2

[Event "Budapest GM ONE WEEK Feb 2024"]
[Site "Budapest"]
[Date "2024.03.01"]
[Round "7.3"]
[White "Paschall, William"]
[Black "Pribelszky, Bence"]
[Result "0-1"]
[ECO "A04"]
[WhiteElo "2331"]
[BlackElo "2371"]
[Annotator "TA"]
[PlyCount "99"]
[EventDate "2024.02.25"]
[EventType "tourn"]
[EventCountry "HUN"]
[SourceTitle "playchess.com"]
[Source "ChessBase"]
[SourceQuality "1"]
[TimeControl "5400+30"]

{[%evp 21,99,1,0,0,0,0,25,-12,-38,-23,-12,-18,-16,-31,-25,-75,-75,-106,-93,-89,-87,-115,-134,-110,-120,-162,-148,-177,-179,-170,-114,-230,-222,-217,-217,-217,-217,-244,-243,-241,-206,-222,-222,-225,-207,-229,-226,-223,-171,-180,0,-225,-203,-229,-229,-235,-209,-229,0,-237,-164,-222,-169,-165,0,0,0,0,0,0,0,0,0,0,0,0,0,0,0,0]} 1. Nf3 {[%emt 0:05:01]} b6 {[%emt 0:00:59]} 2. c4 {[%emt 0:04:16]} Bb7 {[%emt 0:00:15]} 3. g3 {[%emt 0:01:05]} g6 {[%emt 0:04:42]} 4. Bg2 {[%emt 0:00:45]} Bg7 {[%emt 0:00:05]} 5. d4 {[%emt 0:00:39]} Nf6 {[%emt 0:00:08]} 6. O-O {[%emt 0:00:53]} O-O {[%emt 0:00:07]} 7. Nc3 {[%emt 0:00:58]} Ne4 {[%emt 0:00:07]} 8. Nxe4 {[%emt 0:01:44]} Bxe4 {[%emt 0:00:06]} 9. Be3 {[%emt 0:01:49]} d5 {[%emt 0:11:45] A50: Queen's Fianchetto Defence (1 d4 Nf6 2 c4 b6).} 10. Rc1 {[%emt 0:07:27]} Nc6 {[%emt 0:01:27]} 11. Qd2 {[%emt 0:05:31]} Qd7 {[%emt 0:09:22]} 12. Rfd1 {[%emt 0:02:02]} Rfd8 {[%emt 0:01:50]} 13. b3 $146 {[%emt 0:05:19]} ({Predecessor:} 13. Qc3 Rac8 14. b3 dxc4 15. Qxc4 Na5 16. Qb4 c5 17. dxc5 Qxd1+ 18. Rxd1 Rxd1+ 19. Bf1 {0-1 Akobian,V (2637)-Yankovsky,R (2436) North American op 24th 2014 (8)}) 13... a5 {[%emt 0:02:21]} 14. Bf1 {[%emt 0:17:49]} Bxf3 {[%emt 0:15:23]} (14... dxc4 {feels hotter.} 15. Ng5 c3 16. Qxc3 Bd5) 15. exf3 {[%emt 0:00:13]} dxc4 {[%emt 0:00:06]} 16. Rxc4 {[%emt 0:06:54]} b5 {[%emt 0:10:29]} 17. Rcc1 {[%emt 0:04:01]} Nxd4 {[%emt 0:00:37]} (17... Bxd4 $2 18. Qe1 (18. Bxb5 Bxe3 19. Qxe3 Qxd1+ 20. Rxd1 Rxd1+ 21. Kg2 Nd4 $14) (18. Rxc6 $2 Qxc6 19. Bxd4 e5 $19) 18... Qe6 19. Rxc6 (19. Bxb5 Bxe3 20. Rxc6 Rxd1 $14) 19... Qxc6 20. Rxd4 $18 (20. Bxd4 Qe6 $18)) 18. Bxd4 {[%emt 0:00:44]} (18. Kh1 $11) 18... Bxd4 $17 {[%emt 0:00:07]} 19. Qe2 {[%emt 0:02:39]} c6 {[%emt 0:02:41]} 20. f4 {[%emt 0:00:59]} Rac8 {[%emt 0:01:04]} 21. a4 {[%emt 0:04:33]} bxa4 {[%emt 0:11:21]} 22. bxa4 {[%emt 0:00:39]} Rb8 {[%emt 0:00:49]} 23. Rb1 {[%emt 0:04:26]} Rb4 {[%emt 0:07:23]} 24. Rxb4 {[%emt 0:03:44]} axb4 {[%emt 0:00:02]} 25. Rb1 {[%emt 0:00:20]} Bc3 {[%emt 0:04:12]} ({Black should play} 25... c5 $19 26. Qa2 g5) 26. Qf3 {[%emt 0:05:04]} (26. a5 $17) 26... Qa7 $1 $19 {[%emt 0:04:10]} 27. Rd1 {[%emt 0:02:55]} Bd4 {[%emt 0:00:50]} 28. Qb3 {[%emt 0:03:12]} Bxf2+ {[%emt 0:00:57]} 29. Kg2 {[%emt 0:00:04]} Rxd1 {[%emt 0:05:31]} 30. Qxd1 {[%emt 0:00:10]} Bb6 {[%emt 0:02:27]} 31. Bc4 {[%emt 0:00:51]} e6 {[%emt 0:01:43]} 32. Qd6 {[%emt 0:01:46]} Qb7 {[%emt 0:01:01]} 33. Kh3 {[%emt 0:01:17] [#]} c5 $1 {[%emt 0:01:18]} 34. Qe5 {[%emt 0:00:59]} Qc8 {[%emt 0:01:07]} 35. Qd6 {[%emt 0:01:35]} Qb7 {[%emt 0:00:53]} 36. Qe5 {[%emt 0:00:18]} h6 {[%emt 0:00:16]} 37. Qd6 {[%emt 0:01:56]} h5 {[%emt 0:00:01]} 38. Qe5 {[%emt 0:00:17]} Qc8 {[%emt 0:00:57]} 39. Qd6 {[%emt 0:00:28]} Qb7 {[%emt 0:00:26]} 40. Qe5 {[%emt 0:00:25]} Kh7 {[%emt 0:00:25]} 41. Qd6 {[%emt 0:00:40]} (41. Qf6 {is a better defense.}) 41... Qa7 {[%emt 0:00:33]} 42. Qf8 {[%emt 0:02:55] [#]} Qd7 $2 {[%emt 0:00:32]} (42... Qxa4 43. Qxf7+ Kh8 44. Qf8+ (44. Bxe6 Qa8 45. f5 gxf5 46. Qxh5+ Kg7 47. Qg5+ Kh7 48. Bxf5+ Kh8 49. Qh6+ Kg8 50. Be6#) 44... Kh7 45. Bxe6 Qa7 46. Bg8+ Kh8 47. Bf7+ Kh7 48. Qg8+ Kh6 49. Qxg6#) (42... Qc7 $1 $19 43. Kg2 Qd7) 43. Bb5 $1 $11 {[%emt 0:00:05]} Qc7 {[%emt 0:00:50]} 44. Be8 {[%emt 0:00:16]} b3 {[%emt 0:00:33]} 45. Bxf7 {[%emt 0:00:26]} Qd8 {[%emt 0:00:29]} 46. Be8 {[%emt 0:00:51]} b2 {[%emt 0:00:32]} 47. Qf7+ {[%emt 0:00:55]} Kh8 {[%emt 0:00:02]} 48. Qxg6 {[%emt 0:01:44]} Qe7 {[%emt 0:00:01]} 49. Bb5 {[%emt 0:00:48]} (49. Qxh5+ $2 {too greedy.} Qh7 50. Kg4 b1=Q $19 (50... b1=B $2 51. Qxh7+ Kxh7 52. Bb5 $19) (50... Qxh5+ $2 51. Kxh5 b1=Q 52. Bg6 $19)) 49... Qh7 {[%emt 0:01:07]} 50. Qe8+ (50. Qxe6 $2 {perishes.} b1=Q (50... b1=B 51. Qxb6 Qf5+ 52. Kg2 $11) 51. Qe5+ Qg7 52. Qxh5+ Qgh7 (52... Qbh7 $2 53. Qxh7+ Qxh7+ 54. Kg4 $19) 53. Qxh7+ Qxh7+ $19) 0-1

[Event "Budapest GM ONE WEEK Feb 2024"]
[Site "Budapest"]
[Date "2024.03.01"]
[Round "7.4"]
[White "Pasti, Aron"]
[Black "Tomic, Aleksandar"]
[Result "1-0"]
[ECO "B12"]
[WhiteElo "2389"]
[BlackElo "2398"]
[Annotator "TA"]
[PlyCount "45"]
[EventDate "2024.02.25"]
[EventType "tourn"]
[EventCountry "HUN"]
[SourceTitle "playchess.com"]
[Source "ChessBase"]
[SourceQuality "1"]
[TimeControl "5400+30"]

{[%evp 9,45,14,33,3,2,0,0,0,0,0,0,-26,0,0,23,22,1,13,25,30,24,17,10,15,13,0,0,-16,-20,-16,0,0,244,282,276,279,287,279]} 1. e4 {[%emt 0:04:12]} c6 {[%emt 0:00:19]} 2. d4 {[%emt 0:00:03]} d5 {[%emt 0:00:15]} 3. e5 {[%emt 0:00:01]} Bf5 {[%emt 0:02:50]} 4. g4 {[%emt 0:00:10]} Bd7 {[%emt 0:01:31]} 5. Nc3 {[%emt 0:00:09]} Qc8 {[%emt 0:02:41]} 6. h3 {[%emt 0:06:59]} e6 {[%emt 0:08:10][%cal Oh7h5]} 7. Be3 {[%emt 0:00:51]} c5 {[%emt 0:00:58]} 8. dxc5 {[%emt 0:01:00] The position is equal.} Bxc5 {[%emt 0:00:36]} 9. Qd2 {[%emt 0:03:38]} h5 {[%emt 0:03:47]} 10. Bg2 {[%emt 0:12:57]} Bb4 {[%emt 0:25:20]} 11. Nge2 {[%emt 0:00:17]} hxg4 {[%emt 0:02:03][%cal Og4g3]} 12. hxg4 {[%emt 0:04:11]} Rxh1+ {[%emt 0:00:17]} 13. Bxh1 {[%emt 0:00:02]} Qc4 {[%emt 0:00:57][%cal Ob8c6]} 14. f4 {[%emt 0:05:53]} Nc6 {[%emt 0:21:43]} 15. a3 {[%emt 0:04:06]} Bc5 {[%emt 0:10:57]} 16. O-O-O {[%emt 0:04:22] Strongly threatening Bxc5.} O-O-O {[%emt 0:00:53]} 17. Bxc5 {[%emt 0:05:28]} Qxc5 {[%emt 0:00:17]} 18. Kb1 {[%emt 0:01:33]} Nge7 {[%emt 0:02:22][%cal Og7g5]} 19. Nc1 {[%emt 0:00:02]} g5 {[%emt 0:02:23]} 20. Nd3 {[%emt 0:04:05]} Qd4 {[%emt 0:03:12] [#]} (20... Qc4 $11) 21. Nb5 $18 {[%emt 0:00:20][%cal Bc3b5,Bb5d6,Bd6f7][%mdl 32]} ({Not} 21. fxg5 Qxg4 22. Nb5 Nf5 $11) 21... Qb6 {[%emt 0:04:28]} 22. Nd6+ {[%emt 0:00:13]} Kb8 {[%emt 0:00:41]} 23. Nxf7 {[%emt 0:00:06] Weighted Error Value: White=0.07 (flawless) /Black=0.31.  Loses game:     	---       	Black=1      Inaccurate:     	White=1     	Black=1      OK:         	White=6     	Black=7      Best:        	White=2     	---} ({Less strong is} 23. fxg5 Ng6 $16) 1-0